[Event "Live Chess"]
[Site "Chess.com"]
[Date "2011.02.01"]
[Round "-"]
[White "hipposcottimus"]
[Black "maxdiesel"]
[Result "1-0"]
[CurrentPosition "8/4n3/8/3pr2p/1p1k4/pK1P4/3R2PP/8 b - -"]
[Timezone "UTC"]
[ECO "C40"]
[ECOUrl "https://www.chess.com/openings/Kings-Pawn-Opening-Kings-Knight-Elephant-Gambit-3.exd5"]
[UTCDate "2011.02.01"]
[UTCTime "02:41:05"]
[WhiteElo "1626"]
[BlackElo "1526"]
[TimeControl "60"]
[Termination "hipposcottimus won on time"]
[StartTime "02:41:05"]
[EndDate "2011.02.01"]
[EndTime "02:43:24"]
[Link "https://www.chess.com/game/live/93499813"]

1. e4 {[%clk 0:01:00]} 1... e5 {[%clk 0:01:00]} 2. Nf3 {[%clk 0:00:59.7]} 2... d5 {[%clk 0:00:58.7]} 3. exd5 {[%clk 0:00:55.9]} 3... Qxd5 {[%clk 0:00:57.6]} 4. d3 {[%clk 0:00:54.6]} 4... Bg4 {[%clk 0:00:55.7]} 5. Be2 {[%clk 0:00:52.6]} 5... Bxf3 {[%clk 0:00:54.7]} 6. Bxf3 {[%clk 0:00:52.1]} 6... Qb5 {[%clk 0:00:53.3]} 7. Nc3 {[%clk 0:00:50]} 7... Qb6 {[%clk 0:00:51.7]} 8. Qe2 {[%clk 0:00:49.4]} 8... c6 {[%clk 0:00:50.5]} 9. Qxe5+ {[%clk 0:00:47.7]} 9... Be7 {[%clk 0:00:49.9]} 10. Qxg7 {[%clk 0:00:46.8]} 10... Bf6 {[%clk 0:00:47.8]} 11. Qg3 {[%clk 0:00:41.3]} 11... Nd7 {[%clk 0:00:46.2]} 12. Bf4 {[%clk 0:00:40.4]} 12... h5 {[%clk 0:00:40.7]} 13. Be4 {[%clk 0:00:31.2]} 13... Bh4 {[%clk 0:00:38.8]} 14. Qf3 {[%clk 0:00:28.7]} 14... Qxb2 {[%clk 0:00:36.1]} 15. O-O {[%clk 0:00:14.9]} 15... Qxc3 {[%clk 0:00:34.9]} 16. Bc7 {[%clk 0:00:13.6]} 16... Qxc2 {[%clk 0:00:32.6]} 17. Rac1 {[%clk 0:00:11.5]} 17... Qxa2 {[%clk 0:00:30.2]} 18. Bf5 {[%clk 0:00:11.2]} 18... Qd5 {[%clk 0:00:23.2]} 19. Rfe1+ {[%clk 0:00:10.7]} 19... Ne7 {[%clk 0:00:20.5]} 20. Qxd5 {[%clk 0:00:09.9]} 20... cxd5 {[%clk 0:00:19.8]} 21. Bxd7+ {[%clk 0:00:09.5]} 21... Kxd7 {[%clk 0:00:18.4]} 22. Bf4 {[%clk 0:00:08.4]} 22... Rad8 {[%clk 0:00:17.1]} 23. Bg3 {[%clk 0:00:08]} 23... Bxg3 {[%clk 0:00:14.2]} 24. fxg3 {[%clk 0:00:07.7]} 24... Rc8 {[%clk 0:00:13.6]} 25. Rf1 {[%clk 0:00:07.4]} 25... Rxc1 {[%clk 0:00:11.6]} 26. Rxc1 {[%clk 0:00:07.2]} 26... Rf8 {[%clk 0:00:10.6]} 27. Rf1 {[%clk 0:00:07]} 27... f5 {[%clk 0:00:09]} 28. Rd1 {[%clk 0:00:06.7]} 28... Kd6 {[%clk 0:00:08.3]} 29. Kf2 {[%clk 0:00:06.4]} 29... Ke5 {[%clk 0:00:07.6]} 30. Kf3 {[%clk 0:00:06.2]} 30... Kd4 {[%clk 0:00:06.9]} 31. Rd2 {[%clk 0:00:05]} 31... b5 {[%clk 0:00:06.1]} 32. g4 {[%clk 0:00:04.4]} 32... b4 {[%clk 0:00:05.4]} 33. gxf5 {[%clk 0:00:03.2]} 33... Rxf5+ {[%clk 0:00:03.5]} 34. Ke2 {[%clk 0:00:03]} 34... a6 {[%clk 0:00:02.9]} 35. Kd1 {[%clk 0:00:02.7]} 35... a5 {[%clk 0:00:02.4]} 36. Kc2 {[%clk 0:00:02.5]} 36... a4 {[%clk 0:00:01.8]} 37. Kb2 {[%clk 0:00:02.2]} 37... a3+ {[%clk 0:00:01.1]} 38. Ka2 {[%clk 0:00:01.4]} 38... Re5 {[%clk 0:00:00.4]} 39. Kb3 {[%clk 0:00:00.6]} 1-0

[Event "Live Chess"]
[Site "Chess.com"]
[Date "2011.02.01"]
[Round "-"]
[White "maxdiesel"]
[Black "hipposcottimus"]
[Result "1-0"]
[CurrentPosition "2k3r1/2p4p/1B2rpq1/4p3/1Q4b1/2NP4/PPP2P2/1K2R3 b - -"]
[Timezone "UTC"]
[ECO "C23"]
[ECOUrl "https://www.chess.com/openings/Bishops-Opening-2...Nc6"]
[UTCDate "2011.02.01"]
[UTCTime "02:38:42"]
[WhiteElo "1608"]
[BlackElo "1618"]
[TimeControl "60"]
[Termination "maxdiesel won on time"]
[StartTime "02:38:42"]
[EndDate "2011.02.01"]
[EndTime "02:40:42"]
[Link "https://www.chess.com/game/live/93499331"]

1. e4 {[%clk 0:01:00]} 1... e5 {[%clk 0:01:00]} 2. Bc4 {[%clk 0:00:59.2]} 2... Nc6 {[%clk 0:00:59.7]} 3. Qf3 {[%clk 0:00:58.4]} 3... Nf6 {[%clk 0:00:58.4]} 4. d3 {[%clk 0:00:57.3]} 4... Nd4 {[%clk 0:00:57.8]} 5. Qd1 {[%clk 0:00:55.3]} 5... d5 {[%clk 0:00:57.4]} 6. exd5 {[%clk 0:00:53.8]} 6... Nxd5 {[%clk 0:00:57.1]} 7. Bxd5 {[%clk 0:00:52.7]} 7... Qxd5 {[%clk 0:00:55.8]} 8. Nf3 {[%clk 0:00:51.6]} 8... Bg4 {[%clk 0:00:53.9]} 9. h3 {[%clk 0:00:48.6]} 9... Nxf3+ {[%clk 0:00:53.5]} 10. gxf3 {[%clk 0:00:47.9]} 10... Bxf3 {[%clk 0:00:52.9]} 11. Qd2 {[%clk 0:00:46.5]} 11... Bxh1 {[%clk 0:00:51.3]} 12. Nc3 {[%clk 0:00:44.5]} 12... Qd4 {[%clk 0:00:43.8]} 13. Qg5 {[%clk 0:00:41.2]} 13... Bc5 {[%clk 0:00:32]} 14. Be3 {[%clk 0:00:39.2]} 14... Qd7 {[%clk 0:00:20.2]} 15. Bxc5 {[%clk 0:00:36.5]} 15... f6 {[%clk 0:00:17.7]} 16. Qg1 {[%clk 0:00:33.1]} 16... Qxh3 {[%clk 0:00:15.3]} 17. O-O-O {[%clk 0:00:30.7]} 17... O-O-O {[%clk 0:00:14]} 18. Qxg7 {[%clk 0:00:27.9]} 18... Rhg8 {[%clk 0:00:11.6]} 19. Qe7 {[%clk 0:00:25.5]} 19... Bf3 {[%clk 0:00:11]} 20. Re1 {[%clk 0:00:23.4]} 20... Qh6+ {[%clk 0:00:09.3]} 21. Kb1 {[%clk 0:00:21.3]} 21... Bg4 {[%clk 0:00:07.5]} 22. Be3 {[%clk 0:00:20.1]} 22... Qg6 {[%clk 0:00:05.5]} 23. Qb4 {[%clk 0:00:18.1]} 23... Rde8 {[%clk 0:00:04.9]} 24. Bxa7 {[%clk 0:00:16.1]} 24... Re6 {[%clk 0:00:03.2]} 25. Bc5 {[%clk 0:00:14.3]} 25... b6 {[%clk 0:00:00.6]} 26. Bxb6 {[%clk 0:00:12.6]} 1-0

[Event "Live Chess"]
[Site "Chess.com"]
[Date "2011.02.01"]
[Round "-"]
[White "hipposcottimus"]
[Black "maxdiesel"]
[Result "0-1"]
[CurrentPosition "6k1/2r3pp/2n1N3/1p1p1P2/8/p4B2/PK3N1P/8 w - -"]
[Timezone "UTC"]
[ECO "B00"]
[ECOUrl "https://www.chess.com/openings/Kings-Pawn-Opening-St-George-Defense"]
[UTCDate "2011.02.01"]
[UTCTime "02:36:08"]
[WhiteElo "1629"]
[BlackElo "1453"]
[TimeControl "60"]
[Termination "maxdiesel won on time"]
[StartTime "02:36:08"]
[EndDate "2011.02.01"]
[EndTime "02:38:24"]
[Link "https://www.chess.com/game/live/93498674"]

1. e4 {[%clk 0:01:00]} 1... a6 {[%clk 0:01:00]} 2. Ne2 {[%clk 0:00:59.2]} 2... b6 {[%clk 0:00:59.4]} 3. d4 {[%clk 0:00:58.9]} 3... Bb7 {[%clk 0:00:58.8]} 4. c4 {[%clk 0:00:58.4]} 4... c6 {[%clk 0:00:57.9]} 5. f3 {[%clk 0:00:57.9]} 5... Qc7 {[%clk 0:00:57.4]} 6. e5 {[%clk 0:00:57]} 6... d5 {[%clk 0:00:56.4]} 7. Ng3 {[%clk 0:00:56.2]} 7... b5 {[%clk 0:00:55]} 8. cxd5 {[%clk 0:00:54.9]} 8... cxd5 {[%clk 0:00:54.1]} 9. Nd2 {[%clk 0:00:54.7]} 9... e6 {[%clk 0:00:53.5]} 10. Nb3 {[%clk 0:00:54.4]} 10... Bb4+ {[%clk 0:00:51.9]} 11. Bd2 {[%clk 0:00:53.3]} 11... Bxd2+ {[%clk 0:00:49.2]} 12. Qxd2 {[%clk 0:00:53.1]} 12... Nd7 {[%clk 0:00:48.2]} 13. Rc1 {[%clk 0:00:52.9]} 13... Bc6 {[%clk 0:00:46]} 14. Na5 {[%clk 0:00:49.9]} 14... Rc8 {[%clk 0:00:42.3]} 15. Nxc6 {[%clk 0:00:45.7]} 15... Qb6 {[%clk 0:00:39.3]} 16. Qc3 {[%clk 0:00:38]} 16... Ne7 {[%clk 0:00:33]} 17. Qa5 {[%clk 0:00:31.4]} 17... Qxa5+ {[%clk 0:00:28.6]} 18. Nxa5 {[%clk 0:00:31.1]} 18... Rxc1+ {[%clk 0:00:25.5]} 19. Kd2 {[%clk 0:00:30.8]} 19... Rb1 {[%clk 0:00:24.2]} 20. b3 {[%clk 0:00:28.3]} 20... O-O {[%clk 0:00:22]} 21. Kc2 {[%clk 0:00:23.3]} 21... Ra1 {[%clk 0:00:19.8]} 22. Kb2 {[%clk 0:00:21.7]} 22... Rd1 {[%clk 0:00:16.8]} 23. Be2 {[%clk 0:00:18.6]} 23... Rxh1 {[%clk 0:00:14.2]} 24. Nxh1 {[%clk 0:00:18.3]} 24... Rc8 {[%clk 0:00:12.9]} 25. g4 {[%clk 0:00:16.5]} 25... Nc6 {[%clk 0:00:11.7]} 26. b4 {[%clk 0:00:13.7]} 26... Nxb4 {[%clk 0:00:10]} 27. Nb3 {[%clk 0:00:11.7]} 27... Nc6 {[%clk 0:00:09.2]} 28. Bd1 {[%clk 0:00:09.2]} 28... f6 {[%clk 0:00:08.5]} 29. Nf2 {[%clk 0:00:08.5]} 29... fxe5 {[%clk 0:00:07.2]} 30. dxe5 {[%clk 0:00:07.2]} 30... Ndxe5 {[%clk 0:00:06.5]} 31. f4 {[%clk 0:00:06.7]} 31... Nf3 {[%clk 0:00:05.3]} 32. Bxf3 {[%clk 0:00:05.2]} 32... a5 {[%clk 0:00:04.7]} 33. f5 {[%clk 0:00:03.8]} 33... a4 {[%clk 0:00:04.1]} 34. Nc5 {[%clk 0:00:02.9]} 34... exf5 {[%clk 0:00:02.5]} 35. gxf5 {[%clk 0:00:01.6]} 35... Rc7 {[%clk 0:00:01.9]} 36. Ne6 {[%clk 0:00:01.3]} 36... a3+ {[%clk 0:00:01.2]} 0-1

[Event "Live Chess"]
[Site "Chess.com"]
[Date "2011.02.01"]
[Round "-"]
[White "maxdiesel"]
[Black "hipposcottimus"]
[Result "1/2-1/2"]
[CurrentPosition "8/8/8/1R6/8/4kP2/7K/8 w - -"]
[Timezone "UTC"]
[ECO "D02"]
[ECOUrl "https://www.chess.com/openings/Queens-Pawn-Opening-Zukertort-Variation"]
[UTCDate "2011.02.01"]
[UTCTime "02:33:07"]
[WhiteElo "1211"]
[BlackElo "1643"]
[TimeControl "60"]
[Termination "Game drawn by insufficient material"]
[StartTime "02:33:07"]
[EndDate "2011.02.01"]
[EndTime "02:35:23"]
[Link "https://www.chess.com/game/live/93498089"]

1. Nf3 {[%clk 0:01:00]} 1... d5 {[%clk 0:01:00]} 2. d4 {[%clk 0:00:58.3]} 2... Bg4 {[%clk 0:00:59.7]} 3. Nc3 {[%clk 0:00:57.3]} 3... f6 {[%clk 0:00:59.4]} 4. h3 {[%clk 0:00:55.5]} 4... Bxf3 {[%clk 0:00:57.8]} 5. gxf3 {[%clk 0:00:54.9]} 5... e5 {[%clk 0:00:57.5]} 6. Bg2 {[%clk 0:00:54.4]} 6... exd4 {[%clk 0:00:56.4]} 7. Qxd4 {[%clk 0:00:53.5]} 7... Nc6 {[%clk 0:00:54.4]} 8. Qxd5 {[%clk 0:00:52.8]} 8... Be7 {[%clk 0:00:52.4]} 9. Qxd8+ {[%clk 0:00:50.1]} 9... Rxd8 {[%clk 0:00:52.1]} 10. Bf4 {[%clk 0:00:48.2]} 10... Bd6 {[%clk 0:00:51.4]} 11. Bxd6 {[%clk 0:00:46.7]} 11... Rxd6 {[%clk 0:00:51.1]} 12. O-O {[%clk 0:00:45.4]} 12... Nge7 {[%clk 0:00:50.7]} 13. Rad1 {[%clk 0:00:44.4]} 13... O-O {[%clk 0:00:50.4]} 14. Rfe1 {[%clk 0:00:43.4]} 14... Nd5 {[%clk 0:00:47.8]} 15. Nxd5 {[%clk 0:00:41.2]} 15... Rfd8 {[%clk 0:00:45.9]} 16. c4 {[%clk 0:00:37.1]} 16... Ne5 {[%clk 0:00:43.2]} 17. Ne7+ {[%clk 0:00:32.3]} 17... Kf7 {[%clk 0:00:40.2]} 18. Rxd6 {[%clk 0:00:27.7]} 18... cxd6 {[%clk 0:00:39.9]} 19. Nf5 {[%clk 0:00:25.5]} 19... Nxc4 {[%clk 0:00:38.9]} 20. b3 {[%clk 0:00:22.9]} 20... Nb6 {[%clk 0:00:33.1]} 21. Rd1 {[%clk 0:00:22.1]} 21... d5 {[%clk 0:00:32.8]} 22. f4 {[%clk 0:00:21.1]} 22... Ke6 {[%clk 0:00:32]} 23. Nd4+ {[%clk 0:00:19.7]} 23... Kd6 {[%clk 0:00:29.6]} 24. e3 {[%clk 0:00:18.7]} 24... g5 {[%clk 0:00:27.7]} 25. Nb5+ {[%clk 0:00:17.5]} 25... Kc5 {[%clk 0:00:25.5]} 26. fxg5 {[%clk 0:00:15.5]} 26... Kxb5 {[%clk 0:00:23.7]} 27. a4+ {[%clk 0:00:14.4]} 27... Kb4 {[%clk 0:00:22.4]} 28. Rd4+ {[%clk 0:00:13.1]} 28... Kxb3 {[%clk 0:00:20.5]} 29. Kh2 {[%clk 0:00:12.4]} 29... fxg5 {[%clk 0:00:19.2]} 30. h4 {[%clk 0:00:11.5]} 30... gxh4 {[%clk 0:00:17.5]} 31. Rxh4 {[%clk 0:00:10.4]} 31... Rd7 {[%clk 0:00:14.9]} 32. Rh5 {[%clk 0:00:10]} 32... Nc4 {[%clk 0:00:14.1]} 33. Bxd5 {[%clk 0:00:08.8]} 33... Kxa4 {[%clk 0:00:13.1]} 34. Bxc4 {[%clk 0:00:07.9]} 34... Kb4 {[%clk 0:00:12.8]} 35. Rh4 {[%clk 0:00:07.1]} 35... a6 {[%clk 0:00:10.3]} 36. Be6+ {[%clk 0:00:05.9]} 36... Kc5 {[%clk 0:00:09.6]} 37. Bxd7 {[%clk 0:00:05.3]} 37... Kd6 {[%clk 0:00:09.4]} 38. Rxh7 {[%clk 0:00:04.6]} 38... b5 {[%clk 0:00:08.9]} 39. Bxb5 {[%clk 0:00:03.7]} 39... Ke5 {[%clk 0:00:08.3]} 40. Rh6 {[%clk 0:00:03.1]} 40... axb5 {[%clk 0:00:07.2]} 41. Rh5+ {[%clk 0:00:02.4]} 41... Ke4 {[%clk 0:00:06.7]} 42. Rxb5 {[%clk 0:00:01.4]} 42... Kd3 {[%clk 0:00:06.2]} 43. f3 {[%clk 0:00:00.8]} 43... Kxe3 {[%clk 0:00:05.4]} 1/2-1/2

[Event "Live Chess"]
[Site "Chess.com"]
[Date "2011.02.01"]
[Round "-"]
[White "hipposcottimus"]
[Black "maxdiesel"]
[Result "1-0"]
[CurrentPosition "3r2k1/p4p2/2p1p1pB/1p2Pb1P/8/2P3Q1/P4PP1/3B1K2 b - -"]
[Timezone "UTC"]
[ECO "B01"]
[ECOUrl "https://www.chess.com/openings/Scandinavian-Defense-Mieses-Kotrc-Variation-3.Nc3-Qd8-4.d4"]
[UTCDate "2011.02.01"]
[UTCTime "02:30:33"]
[WhiteElo "1650"]
[BlackElo "1079"]
[TimeControl "60"]
[Termination "hipposcottimus won on time"]
[StartTime "02:30:33"]
[EndDate "2011.02.01"]
[EndTime "02:32:40"]
[Link "https://www.chess.com/game/live/93497589"]

1. e4 {[%clk 0:01:00]} 1... d5 {[%clk 0:01:00]} 2. exd5 {[%clk 0:00:58.7]} 2... Qxd5 {[%clk 0:00:59.3]} 3. Nc3 {[%clk 0:00:58.4]} 3... Qd8 {[%clk 0:00:58.1]} 4. d4 {[%clk 0:00:57.2]} 4... Bf5 {[%clk 0:00:57.1]} 5. Nf3 {[%clk 0:00:56.4]} 5... e6 {[%clk 0:00:56.1]} 6. Bb5+ {[%clk 0:00:55.1]} 6... c6 {[%clk 0:00:54.4]} 7. Ba4 {[%clk 0:00:54.7]} 7... Bb4 {[%clk 0:00:53.4]} 8. O-O {[%clk 0:00:51.7]} 8... Qa5 {[%clk 0:00:52.1]} 9. Bb3 {[%clk 0:00:49.9]} 9... Bxc3 {[%clk 0:00:50.4]} 10. bxc3 {[%clk 0:00:49.1]} 10... Qxc3 {[%clk 0:00:48]} 11. Bd2 {[%clk 0:00:45.2]} 11... Qb2 {[%clk 0:00:40.2]} 12. Rb1 {[%clk 0:00:41.3]} 12... Qa3 {[%clk 0:00:38.9]} 13. Re1 {[%clk 0:00:31.7]} 13... Qd6 {[%clk 0:00:36.8]} 14. Ne5 {[%clk 0:00:31.2]} 14... Nf6 {[%clk 0:00:34.3]} 15. Ba4 {[%clk 0:00:29.5]} 15... b5 {[%clk 0:00:32.2]} 16. Bb4 {[%clk 0:00:28.8]} 16... Qc7 {[%clk 0:00:29.4]} 17. Bb3 {[%clk 0:00:26]} 17... Nd5 {[%clk 0:00:27.5]} 18. Ba3 {[%clk 0:00:24.4]} 18... Nc3 {[%clk 0:00:25]} 19. Bb2 {[%clk 0:00:24.2]} 19... Nxb1 {[%clk 0:00:23.8]} 20. Qxb1 {[%clk 0:00:22.7]} 20... Nd7 {[%clk 0:00:21.2]} 21. Qd1 {[%clk 0:00:21.8]} 21... Nxe5 {[%clk 0:00:19.6]} 22. dxe5 {[%clk 0:00:21.5]} 22... O-O {[%clk 0:00:18.2]} 23. Qf3 {[%clk 0:00:21]} 23... Rad8 {[%clk 0:00:16.6]} 24. Bc1 {[%clk 0:00:19.2]} 24... Rd7 {[%clk 0:00:15.2]} 25. Bg5 {[%clk 0:00:17.3]} 25... Re8 {[%clk 0:00:13.4]} 26. Qg3 {[%clk 0:00:16.6]} 26... h6 {[%clk 0:00:11.6]} 27. Bxh6 {[%clk 0:00:15.5]} 27... g6 {[%clk 0:00:09.2]} 28. h4 {[%clk 0:00:14.8]} 28... Red8 {[%clk 0:00:08]} 29. h5 {[%clk 0:00:14.1]} 29... Rd1 {[%clk 0:00:06.7]} 30. Rf1 {[%clk 0:00:13]} 30... Rxf1+ {[%clk 0:00:04.3]} 31. Kxf1 {[%clk 0:00:12.7]} 31... Qd7 {[%clk 0:00:02.2]} 32. c3 {[%clk 0:00:10]} 32... Qd1+ {[%clk 0:00:00.4]} 33. Bxd1 {[%clk 0:00:09.1]} 1-0

[Event "Live Chess"]
[Site "Chess.com"]
[Date "2011.02.01"]
[Round "-"]
[White "maxdiesel"]
[Black "hipposcottimus"]
[Result "0-1"]
[CurrentPosition "2kr3r/ppp2p1p/6p1/1P3n1b/5P2/2q5/P4QKP/1R1q2NR w - -"]
[Timezone "UTC"]
[ECO "C23"]
[ECOUrl "https://www.chess.com/openings/Bishops-Opening-2...Nc6"]
[UTCDate "2011.02.01"]
[UTCTime "02:28:18"]
[WhiteElo "1107"]
[BlackElo "1649"]
[TimeControl "60"]
[Termination "hipposcottimus won on time"]
[StartTime "02:28:18"]
[EndDate "2011.02.01"]
[EndTime "02:30:16"]
[Link "https://www.chess.com/game/live/93497097"]

1. e4 {[%clk 0:01:00]} 1... e5 {[%clk 0:01:00]} 2. Bc4 {[%clk 0:00:59]} 2... Nc6 {[%clk 0:00:59.2]} 3. Qh5 {[%clk 0:00:57.8]} 3... g6 {[%clk 0:00:58.4]} 4. Qf3 {[%clk 0:00:56.1]} 4... Nf6 {[%clk 0:00:58.1]} 5. g4 {[%clk 0:00:53.6]} 5... Nd4 {[%clk 0:00:56.5]} 6. Qd1 {[%clk 0:00:50.5]} 6... d5 {[%clk 0:00:55.7]} 7. exd5 {[%clk 0:00:48.8]} 7... Bxg4 {[%clk 0:00:54.6]} 8. f3 {[%clk 0:00:42.3]} 8... Bh5 {[%clk 0:00:47.1]} 9. c3 {[%clk 0:00:36.9]} 9... Nf5 {[%clk 0:00:43.1]} 10. b4 {[%clk 0:00:32.8]} 10... Nxd5 {[%clk 0:00:41.7]} 11. Bxd5 {[%clk 0:00:28.2]} 11... Qxd5 {[%clk 0:00:39.9]} 12. Qe2 {[%clk 0:00:23.6]} 12... O-O-O {[%clk 0:00:34.7]} 13. d3 {[%clk 0:00:19.3]} 13... Qc6 {[%clk 0:00:34.2]} 14. Bd2 {[%clk 0:00:14]} 14... Bg7 {[%clk 0:00:28.1]} 15. Na3 {[%clk 0:00:13]} 15... e4 {[%clk 0:00:24.9]} 16. b5 {[%clk 0:00:11.9]} 16... Qc5 {[%clk 0:00:22.9]} 17. f4 {[%clk 0:00:10.5]} 17... Qxa3 {[%clk 0:00:21.5]} 18. Qf2 {[%clk 0:00:08.8]} 18... exd3 {[%clk 0:00:20.3]} 19. Rb1 {[%clk 0:00:06.3]} 19... Bxc3 {[%clk 0:00:19]} 20. Bxc3 {[%clk 0:00:04.2]} 20... Qxc3+ {[%clk 0:00:18.1]} 21. Kf1 {[%clk 0:00:01.7]} 21... d2 {[%clk 0:00:15.9]} 22. Kg2 {[%clk 0:00:00.4]} 22... d1=Q {[%clk 0:00:12.6]} 0-1

[Event "Live Chess"]
[Site "Chess.com"]
[Date "2011.02.01"]
[Round "-"]
[White "hipposcottimus"]
[Black "maxdiesel"]
[Result "1-0"]
[CurrentPosition "rnb1kQnr/p2q4/3P3p/8/6p1/P1N5/4B1PP/R4RK1 b kq -"]
[Timezone "UTC"]
[ECO "B00"]
[ECOUrl "https://www.chess.com/openings/Owens-Defense-2.d4-Bb7"]
[UTCDate "2011.02.01"]
[UTCTime "02:26:18"]
[WhiteElo "1648"]
[BlackElo "1145"]
[TimeControl "60"]
[Termination "hipposcottimus won by checkmate"]
[StartTime "02:26:18"]
[EndDate "2011.02.01"]
[EndTime "02:27:58"]
[Link "https://www.chess.com/game/live/93496641"]

1. e4 {[%clk 0:01:00]} 1... b6 {[%clk 0:01:00]} 2. d4 {[%clk 0:00:58]} 2... Bb7 {[%clk 0:00:59.6]} 3. d5 {[%clk 0:00:57.8]} 3... d6 {[%clk 0:00:57.7]} 4. c4 {[%clk 0:00:57.5]} 4... e5 {[%clk 0:00:56]} 5. Nc3 {[%clk 0:00:57.2]} 5... Bc8 {[%clk 0:00:53.4]} 6. Nge2 {[%clk 0:00:55]} 6... f5 {[%clk 0:00:52.6]} 7. f4 {[%clk 0:00:54.2]} 7... g6 {[%clk 0:00:50.5]} 8. fxe5 {[%clk 0:00:52.7]} 8... dxe5 {[%clk 0:00:49.9]} 9. Ng3 {[%clk 0:00:39.9]} 9... f4 {[%clk 0:00:48.8]} 10. Nge2 {[%clk 0:00:38.7]} 10... Bd6 {[%clk 0:00:45.6]} 11. a3 {[%clk 0:00:35.6]} 11... g5 {[%clk 0:00:44.7]} 12. b4 {[%clk 0:00:34.6]} 12... g4 {[%clk 0:00:43.4]} 13. c5 {[%clk 0:00:33.6]} 13... bxc5 {[%clk 0:00:41.1]} 14. bxc5 {[%clk 0:00:31.8]} 14... Bxc5 {[%clk 0:00:38.3]} 15. Nxf4 {[%clk 0:00:29.8]} 15... exf4 {[%clk 0:00:36.3]} 16. Bxf4 {[%clk 0:00:29.4]} 16... Bd6 {[%clk 0:00:35]} 17. e5 {[%clk 0:00:27.5]} 17... Be7 {[%clk 0:00:32.4]} 18. Be2 {[%clk 0:00:27]} 18... Bg5 {[%clk 0:00:30.8]} 19. Qd2 {[%clk 0:00:24.1]} 19... h6 {[%clk 0:00:27.9]} 20. O-O {[%clk 0:00:20]} 20... Bxf4 {[%clk 0:00:26.2]} 21. Qxf4 {[%clk 0:00:19.1]} 21... Qe7 {[%clk 0:00:21.7]} 22. d6 {[%clk 0:00:17.3]} 22... cxd6 {[%clk 0:00:20]} 23. exd6 {[%clk 0:00:16.4]} 23... Qd7 {[%clk 0:00:18.2]} 24. Qf8# {[%clk 0:00:14.4]} 1-0

[Event "Live Chess"]
[Site "Chess.com"]
[Date "2011.02.01"]
[Round "-"]
[White "hipposcottimus"]
[Black "Liiiife"]
[Result "1-0"]
[CurrentPosition "r4r2/pb1Bp1b1/1p1p1p2/8/2p1k2N/4NQ2/PP3PPP/3R1RK1 b - -"]
[Timezone "UTC"]
[ECO "A40"]
[ECOUrl "https://www.chess.com/openings/Modern-Defense-with-1-d4-2.c4-Bg7-3.e4"]
[UTCDate "2011.02.01"]
[UTCTime "02:23:03"]
[WhiteElo "1647"]
[BlackElo "1432"]
[TimeControl "60"]
[Termination "hipposcottimus won on time"]
[StartTime "02:23:03"]
[EndDate "2011.02.01"]
[EndTime "02:24:44"]
[Link "https://www.chess.com/game/live/93495964"]

1. e4 {[%clk 0:01:00]} 1... g6 {[%clk 0:01:00]} 2. d4 {[%clk 0:00:58.1]} 2... Bg7 {[%clk 0:00:59.2]} 3. c4 {[%clk 0:00:57.8]} 3... Nf6 {[%clk 0:00:58.3]} 4. e5 {[%clk 0:00:55.4]} 4... O-O {[%clk 0:00:57.6]} 5. exf6 {[%clk 0:00:54.2]} 5... Bxf6 {[%clk 0:00:54.3]} 6. Nf3 {[%clk 0:00:53.9]} 6... d6 {[%clk 0:00:53.1]} 7. Be2 {[%clk 0:00:53.6]} 7... Nc6 {[%clk 0:00:52.1]} 8. d5 {[%clk 0:00:52.8]} 8... Ne5 {[%clk 0:00:50.6]} 9. O-O {[%clk 0:00:51.2]} 9... b6 {[%clk 0:00:47.2]} 10. Bh6 {[%clk 0:00:47.1]} 10... Bg7 {[%clk 0:00:44.7]} 11. Nxe5 {[%clk 0:00:45.9]} 11... Bxh6 {[%clk 0:00:41.4]} 12. Ng4 {[%clk 0:00:45.6]} 12... Bg7 {[%clk 0:00:39.6]} 13. Ne3 {[%clk 0:00:44.9]} 13... f6 {[%clk 0:00:38.3]} 14. Nd2 {[%clk 0:00:44.4]} 14... Bb7 {[%clk 0:00:37]} 15. Nf3 {[%clk 0:00:43.8]} 15... Qd7 {[%clk 0:00:34.5]} 16. Bd3 {[%clk 0:00:43.4]} 16... c6 {[%clk 0:00:32.9]} 17. Nh4 {[%clk 0:00:42.5]} 17... cxd5 {[%clk 0:00:31.2]} 18. Bxg6 {[%clk 0:00:40.2]} 18... dxc4 {[%clk 0:00:27.2]} 19. Bxh7+ {[%clk 0:00:38.7]} 19... Kf7 {[%clk 0:00:24.4]} 20. Qh5+ {[%clk 0:00:37.8]} 20... Ke6 {[%clk 0:00:21.6]} 21. Bf5+ {[%clk 0:00:35.7]} 21... Ke5 {[%clk 0:00:16]} 22. Bxd7+ {[%clk 0:00:34.6]} 22... Kd4 {[%clk 0:00:08.5]} 23. Rad1+ {[%clk 0:00:33.5]} 23... Ke4 {[%clk 0:00:00.6]} 24. Qf3+ {[%clk 0:00:31.1]} 1-0